fUSD/lending_fUSD_20241221
["ID","MTS","AMOUNT","RATE_DAILY","PERIOD"]
[346164454,1734762650172,-500.0,0.00021396,2]
[346164455,1734762650181,-500.0,0.00021396,2]
[346164456,1734762650192,-500.0,0.00021396,2]
[346164457,1734762650201,-500.0,0.00021396,2]
[346164458,1734762650211,-150.0,0.0002142,2]
[346164459,1734762650221,-150.0,0.00021427,2]
[346164460,1734762650231,-150.0,0.0002143,2]
[346164461,1734762650241,-1500.0,0.00021459,2]
[346164462,1734762650252,-500.0,0.00021489,2]
[346164463,1734762650261,-500.0,0.00021489,2]
[346164464,1734762650274,-500.0,0.00021497,2]
[346164465,1734762650284,-2110.0,0.000215,2]
[346164466,1734762650293,-206.4945399,0.000215,2]
[346164467,1734762650303,-4024.0,0.000215,3]
[346164468,1734762650313,-1500.0,0.00021503,2]
[346164469,1734762650323,-150.0,0.00021523,2]
[346164470,1734762650333,-1500.0,0.00021547,2]
[346164471,1734762650343,-150.0,0.00021551,2]
[346164472,1734762650352,-211.0929626,0.00021569,2]
[346164473,1734762650362,-500.0,0.00021599,2]
[346164474,1734762650372,-3000.0,0.000216,2]
[346164475,1734762650382,-600.0,0.000216,5]
[346164476,1734762650392,-582.3708318,0.0002161,2]
[346164477,1734762650403,-1079.97,0.00021643,2]
[346164478,1734762650412,-500.0,0.00021643,2]
[346164479,1734762650422,-1224.45,0.00021643,2]
[346164480,1734762650432,-2176.47,0.00021643,2]
[346164481,1734762650442,-943.01,0.00021643,2]
[346164482,1734762650452,-1534.27,0.00021643,2]
[346164483,1734762650461,-3068.89,0.00021643,2]
[346164484,1734762650471,-2229.29,0.00021643,2]
[346164485,1734762650481,-1660.81,0.00021643,2]
[346164486,1734762650491,-2717.75,0.00021643,2]
[346164487,1734762650501,-2210.95,0.00021643,2]
[346164488,1734762650510,-1874.61,0.00021643,2]
[346164489,1734762650522,-500.0,0.00021643,2]
[346164490,1734762650533,-3498.34,0.00021643,2]
[346164491,1734762650542,-1932.17,0.00021643,2]
[346164492,1734762650553,-500.0,0.00021643,2]
[346164493,1734762650563,-1354.83,0.00021643,2]
[346164494,1734762650573,-500.0,0.00021643,2]
[346164495,1734762650583,-369.14567264,0.00021643,2]
[346164496,1734762650825,-10318.63,0.00021643,2]
[346164497,1734762650836,-565.37,0.00021643,2]
[346164498,1734762650846,-500.0,0.00021643,2]
[346164499,1734762650856,-512.2479325,0.00021643,2]
[346164500,1734762650866,-1118.69,0.00021643,2]
[346164501,1734762650876,-1119.59,0.00021643,2]
[346164502,1734762650887,-3574.97424867,0.00021657,2]
[346164503,1734762650897,-150.0,0.00021665,2]
[346164504,1734762650907,-500.0,0.00021667,2]
[346164505,1734762650916,-1129.95,0.00021667,2]
[346164506,1734762650927,-945.4,0.00021667,2]
[346164507,1734762650936,-505.7,0.00021667,2]
[346164508,1734762650945,-500.0,0.00021667,2]
[346164509,1734762650955,-878.2,0.00021667,2]
[346164510,1734762650966,-500.0,0.00021667,2]
[346164511,1734762650976,-500.0,0.00021667,2]
[346164512,1734762650985,-500.0,0.00021667,2]
[346164513,1734762650994,-500.0,0.00021667,2]
[346164514,1734762651004,-798.65,0.00021667,2]
[346164515,1734762651013,-500.0,0.00021667,2]
[346164516,1734762651024,-651.53,0.00021667,2]
[346164517,1734762651033,-825.6,0.00021667,2]
[346164518,1734762651042,-533.53,0.00021667,2]
[346164519,1734762651053,-500.0,0.00021667,2]
[346164520,1734762651063,-500.0,0.00021667,2]
[346164521,1734762651073,-500.0,0.00021667,2]
[346164522,1734762651083,-661.88,0.00021667,2]
[346164523,1734762651094,-640.6,0.00021667,2]
[346164524,1734762651103,-500.0,0.00021667,2]
[346164525,1734762651113,-500.0,0.00021667,2]
[346164526,1734762651123,-500.0,0.00021667,2]
[346164527,1734762651132,-500.0,0.00021667,2]
[346164528,1734762651142,-778.66,0.00021667,2]
[346164529,1734762651152,-500.0,0.00021667,2]
[346164530,1734762651161,-500.0,0.00021667,2]
[346164531,1734762651171,-725.75,0.00021667,2]
[346164532,1734762651180,-500.0,0.00021667,2]
[346164533,1734762651191,-500.0,0.00021667,2]
[346164534,1734762651200,-500.0,0.00021667,2]
[346164535,1734762651210,-564.39941927,0.00021667,2]
[346164536,1734762651220,-785.03,0.00021667,2]
[346164537,1734762651230,-500.0,0.00021667,2]
[346164538,1734762651240,-500.0,0.00021667,2]
[346164539,1734762651250,-555.17,0.00021667,2]
[346164540,1734762651260,-500.0,0.00021667,2]
[346164541,1734762651270,-530.93,0.00021667,2]
[346164542,1734762651280,-571.64,0.00021667,2]
[346164543,1734762651290,-824.95,0.00021667,2]
[346164544,1734762651299,-1154.21,0.00021667,2]
[346164545,1734762651309,-505.82,0.00021667,2]
[346164546,1734762651318,-641.5,0.00021667,2]
[346164547,1734762651328,-500.0,0.00021667,2]
[346164548,1734762651338,-500.0,0.00021667,2]
[346164549,1734762651347,-759.47,0.00021667,2]
[346164550,1734762651357,-500.0,0.00021667,2]
[346164551,1734762651367,-719.01,0.00021667,2]
[346164552,1734762651376,-500.0,0.00021667,2]
[346164553,1734762651386,-559.19,0.00021667,2]
[346164554,1734762651396,-643.01,0.00021667,2]
[346164555,1734762651410,-500.0,0.00021667,2]
[346164556,1734762651419,-500.0,0.00021667,2]
[346164557,1734762651428,-500.0,0.00021667,2]
[346164558,1734762651438,-531.7,0.00021667,2]
[346164559,1734762651448,-595.1,0.00021667,2]
[346164560,1734762651457,-500.0,0.00021667,2]
[346164561,1734762651467,-728.88,0.00021667,2]
[346164562,1734762651477,-500.0,0.00021667,2]
[346164563,1734762651486,-500.0,0.00021667,2]
[346164564,1734762651496,-500.0,0.00021667,2]
[346164565,1734762651505,-651.48,0.00021667,2]
[346164566,1734762651515,-1169.52,0.00021667,2]
[346164567,1734762651526,-511.96,0.00021667,2]
[346164568,1734762651540,-1404.37,0.00021667,2]
[346164569,1734762651549,-857.24,0.00021667,2]
[346164570,1734762651559,-623.31,0.00021667,2]
[346164571,1734762651569,-500.0,0.00021667,2]
[346164572,1734762651579,-500.0,0.00021667,2]
[346164573,1734762651589,-717.36,0.00021667,2]
[346164574,1734762651599,-500.0,0.00021667,2]
[346164575,1734762651612,-727.07,0.00021667,2]
[346164576,1734762651625,-500.0,0.00021667,2]
[346164577,1734762651634,-1561.63,0.00021667,2]
[346164578,1734762651643,-608.09,0.00021667,2]
[346164579,1734762651653,-500.0,0.00021667,2]
[346164580,1734762651663,-795.08,0.00021667,2]
[346164581,1734762651672,-1607.753683,0.00021667,2]
[346164582,1734762651682,-500.0,0.00021667,2]
[346164583,1734762651691,-500.0,0.00021667,2]
[346164584,1734762651701,-1328.89,0.00021667,2]
[346164585,1734762651710,-500.0,0.00021667,2]
[346164586,1734762651719,-759.82,0.00021667,2]
[346164587,1734762651729,-500.0,0.00021667,2]
[346164588,1734762651739,-2471.688251,0.00021667,2]
[346164589,1734762651748,-2334.14,0.00021667,2]
[346164590,1734762651757,-1192.55,0.00021667,2]
[346164591,1734762651768,-663.59,0.00021667,2]
[346164592,1734762651778,-500.0,0.00021667,2]
[346164593,1734762651787,-613.61,0.00021667,2]
[346164594,1734762651796,-1857.4,0.00021667,2]
[346164595,1734762651806,-743.67,0.00021667,2]
[346164596,1734762651815,-612.45,0.00021667,2]
[346164597,1734762651824,-1951.38,0.00021667,2]
[346164598,1734762651833,-950.79,0.00021667,2]
[346164599,1734762651843,-500.0,0.00021667,2]
[346164600,1734762651852,-633.8,0.00021667,2]
[346164601,1734762651862,-735.75,0.00021667,2]
[346164602,1734762651871,-2439.59,0.00021667,2]
[346164603,1734762651881,-656.72,0.00021667,2]
[346164604,1734762651891,-1163.17,0.00021667,2]
[346164605,1734762651901,-500.0,0.00021667,2]
[346164606,1734762651910,-799.04,0.00021667,2]
[346164607,1734762651920,-983.81,0.00021667,2]
[346164608,1734762651930,-878.92,0.00021667,2]
[346164609,1734762651939,-500.0,0.00021667,2]
[346164610,1734762651948,-1276.64,0.00021667,2]
[346164611,1734762651958,-500.0,0.00021667,2]
[346164612,1734762651967,-904.13,0.00021667,2]
[346164613,1734762651976,-500.0,0.00021667,2]
[346164614,1734762651986,-1244.02,0.00021667,2]
[346164615,1734762651995,-9383.06,0.00021667,2]
[346164616,1734762652005,-1268.89,0.00021667,2]
[346164617,1734762652014,-1339.5,0.00021667,2]
[346164618,1734762652025,-682.04,0.00021667,2]
[346164619,1734762652035,-500.0,0.00021667,2]
[346164620,1734762652045,-503.45902391,0.00021667,2]
[346164621,1734762652054,-1529.55,0.00021667,2]
[346164622,1734762652064,-1674.98,0.00021667,2]
[346164623,1734762652074,-1047.45,0.00021667,2]
[346164624,1734762652083,-989.85,0.00021667,2]
[346164625,1734762652093,-886.98,0.00021667,2]
[346164626,1734762652102,-601.09763339,0.00021667,2]
[346164627,1734762652111,-500.0,0.00021667,2]
[346164628,1734762652120,-592.58,0.00021667,2]
[346164629,1734762652130,-506.13320434,0.00021667,2]
[346164630,1734762652139,-933.71,0.00021667,2]
[346164631,1734762652148,-500.0,0.00021667,2]
[346164632,1734762652158,-1944.34,0.00021667,2]
[346164633,1734762652167,-504.72684227,0.00021667,2]
[346164634,1734762652177,-3625.55,0.00021667,2]
[346164635,1734762652186,-500.0,0.00021667,2]
[346164636,1734762652195,-1309.07,0.00021667,2]
[346164637,1734762652205,-500.0,0.00021667,2]
[346164638,1734762652214,-832.32,0.00021667,2]
[346164639,1734762652223,-500.0,0.00021667,2]
[346164640,1734762652232,-500.0,0.00021667,2]
[346164641,1734762652243,-500.0,0.00021667,2]
[346164642,1734762652254,-9438.28,0.00021667,2]
[346164643,1734762652263,-500.0,0.00021667,2]
[346164644,1734762652275,-507.70471327,0.00021667,2]
[346164645,1734762652285,-509.22524717,0.00021667,2]
[346164646,1734762652294,-500.0,0.00021667,2]
[346164647,1734762652304,-2815.2,0.00021667,2]
[346164648,1734762652313,-2582.69,0.00021667,2]
[346164649,1734762652323,-500.0,0.00021667,2]
[346164650,1734762652332,-500.0,0.00021667,2]
[346164651,1734762652342,-287.89113812,0.00021667,2]
[346164652,1734762652351,-500.0,0.00021667,2]
[346164653,1734762652361,-500.0,0.00021667,2]
[346164654,1734762652371,-500.0,0.00021667,2]
[346164655,1734762652380,-647.96,0.00021667,2]
[346164656,1734762652390,-500.0,0.00021667,2]
[346164657,1734762652399,-500.0,0.00021667,2]
[346164658,1734762652410,-2608.29,0.00021667,2]
[346164659,1734762652430,-1121.25,0.00021667,2]
[346164660,1734762652450,-1245.39,0.00021667,2]
[346164661,1734762652460,-500.0,0.00021667,2]
[346164662,1734762652470,-500.0,0.00021667,2]
[346164663,1734762652480,-788.01,0.00021667,2]
[346164664,1734762652490,-1899.18,0.00021667,2]
[346164665,1734762652499,-1386.91,0.00021667,2]
[346164666,1734762652509,-6741.73,0.00021667,2]
[346164667,1734762652530,-2335.79,0.00021667,2]
[346164668,1734762652552,-1032.91,0.00021667,2]
[346164669,1734762652566,-359.85213615,0.00021667,2]
[346164670,1734762652575,-500.0,0.00021668,2]
[346164671,1734762652585,-500.0,0.00021668,2]
[346164672,1734762652594,-500.0,0.00021668,2]
[346164673,1734762652604,-500.0,0.00021668,2]
[346164674,1734762652614,-500.0,0.00021668,2]
[346164675,1734762652623,-500.0,0.00021668,2]
[346164676,1734762652633,-500.0,0.00021668,2]
[346164677,1734762652642,-500.0,0.00021668,2]
[346164678,1734762652652,-500.0,0.00021668,2]
[346164679,1734762652661,-500.0,0.00021668,2]
[346164680,1734762652671,-500.0,0.00021668,2]
[346164681,1734762652681,-500.0,0.00021668,2]
[346164682,1734762652691,-500.0,0.00021668,2]
[346164683,1734762652702,-500.0,0.00021668,2]
[346164684,1734762652711,-500.0,0.00021668,2]
[346164685,1734762652721,-500.0,0.00021668,2]
[346164686,1734762652731,-533.89840578,0.00021668,2]
[346164687,1734762652741,-564.66,0.00021668,2]
[346164688,1734762652751,-500.0,0.00021668,2]
[346164689,1734762652760,-500.0,0.00021668,2]
[346164690,1734762652771,-500.0,0.00021668,2]
[346164691,1734762652781,-500.0,0.00021668,2]
[346164692,1734762652790,-500.0,0.00021668,2]
[346164693,1734762652800,-500.0,0.00021668,2]
[346164694,1734762652809,-500.0,0.00021668,2]
[346164695,1734762652819,-500.0,0.00021668,2]
[346164696,1734762652828,-500.0,0.00021668,2]
[346164697,1734762652839,-500.0,0.00021668,2]
[346164698,1734762652848,-500.0,0.00021668,2]
[346164699,1734762652858,-500.0,0.00021668,2]
[346164700,1734762652867,-500.0,0.00021668,2]
[346164701,1734762652878,-500.0,0.00021668,2]
[346164702,1734762652890,-500.0,0.00021668,2]
[346164703,1734762652899,-500.0,0.00021668,2]
[346164704,1734762652909,-508.31232062,0.00021668,2]
[346164705,1734762652920,-536.53107612,0.00021668,2]
[346164706,1734762652930,-500.0,0.00021668,2]
[346164707,1734762652940,-500.0,0.00021668,2]
[346164708,1734762652949,-500.0,0.00021668,2]
[346164709,1734762652961,-500.0,0.00021668,2]
[346164710,1734762652970,-500.0,0.00021668,2]
[346164711,1734762652980,-575.40107489,0.00021668,2]
[346164712,1734762652989,-500.0,0.00021668,2]
[346164713,1734762652998,-500.0,0.00021668,2]
[346164714,1734762653007,-500.0,0.00021668,2]
[346164715,1734762653017,-500.0,0.00021668,2]
[346164716,1734762653028,-500.0,0.00021668,2]
[346164717,1734762653038,-500.0,0.00021668,2]
[346164718,1734762653048,-545.1,0.00021668,2]
[346164719,1734762653057,-500.0,0.00021668,2]
[346164720,1734762653066,-500.0,0.00021668,2]
[346164721,1734762653075,-500.0,0.00021668,2]
[346164722,1734762653084,-500.0,0.00021668,2]
[346164723,1734762653094,-500.0,0.00021668,2]
[346164724,1734762653103,-500.0,0.00021668,2]
[346164725,1734762653112,-500.0,0.00021668,2]
[346164726,1734762653121,-430.03678522,0.00021668,2]
[346164727,1734762653130,-500.0,0.00021668,2]
[346164728,1734762653139,-662.37,0.00021668,2]
[346164729,1734762653149,-500.0,0.00021668,2]
[346164730,1734762653223,-500.0,0.00021668,2]
[346164731,1734762653232,-500.0,0.00021668,2]
[346164732,1734762653241,-659.76,0.00021668,2]
[346164733,1734762653251,-500.0,0.00021668,2]
[346164734,1734762653260,-500.0,0.00021668,2]
[346164735,1734762653270,-500.0,0.00021668,2]
[346164736,1734762653279,-529.88944646,0.00021668,2]
[346164737,1734762653288,-669.24,0.00021668,2]
[346164738,1734762653297,-500.0,0.00021668,2]
[346164739,1734762653306,-500.0,0.00021668,2]
[346164740,1734762653315,-716.57,0.00021668,2]
[346164741,1734762653324,-500.0,0.00021668,2]
[346164742,1734762653333,-604.12,0.00021668,2]
[346164743,1734762653342,-500.0,0.00021668,2]
[346164744,1734762653351,-504.42,0.00021668,2]
[346164745,1734762653360,-500.0,0.00021668,2]
[346164746,1734762653369,-500.0,0.00021668,2]
[346164747,1734762653378,-500.0,0.00021668,2]
[346164748,1734762653387,-500.0,0.00021668,2]
[346164749,1734762653396,-500.0,0.00021668,2]
[346164750,1734762653406,-500.0,0.00021668,2]
[346164751,1734762653415,-500.0,0.00021668,2]
[346164752,1734762653424,-554.80254237,0.00021668,2]
[346164753,1734762653433,-500.0,0.00021668,2]
[346164754,1734762653442,-687.48,0.00021668,2]
[346164755,1734762653451,-180.1491264,0.00021668,2]
[346164756,1734762653460,-1000.0,0.00021668,30]
[346164757,1734762653470,-807.05,0.00021668,2]
[346164758,1734762653479,-500.0,0.00021668,2]
[346164759,1734762653488,-500.0,0.00021668,2]
[346164760,1734762653497,-568.83,0.00021668,2]
[346164761,1734762653506,-500.0,0.00021668,2]
[346164762,1734762653516,-500.0,0.00021668,2]
[346164763,1734762653527,-1137.49,0.00021668,2]
[346164764,1734762653536,-528.28,0.00021668,2]
[346164765,1734762653545,-500.0,0.00021668,2]
[346164766,1734762653554,-500.0,0.00021668,2]
[346164767,1734762653563,-535.82,0.00021668,2]
[346164768,1734762653572,-520.39,0.00021668,2]
[346164769,1734762653581,-758.02,0.00021668,2]
[346164770,1734762653591,-500.0,0.00021668,2]
[346164771,1734762653600,-766.99,0.00021668,2]
[346164772,1734762653609,-500.0,0.00021668,2]
[346164773,1734762653618,-500.0,0.00021668,2]
[346164774,1734762653627,-500.0,0.00021668,2]
[346164775,1734762653636,-500.0,0.00021668,2]
[346164776,1734762653646,-500.0,0.00021668,2]
[346164777,1734762653654,-504.74,0.00021668,2]
[346164778,1734762653663,-500.0,0.00021668,2]
[346164779,1734762653672,-500.0,0.00021668,2]
[346164780,1734762653681,-1029.63,0.00021668,2]
[346164781,1734762653690,-500.0,0.00021668,2]
[346164782,1734762653700,-500.0,0.00021668,2]
[346164783,1734762653708,-500.0,0.00021668,2]
[346164784,1734762653718,-500.0,0.00021668,2]
[346164785,1734762653727,-611.01,0.00021668,2]
[346164786,1734762653736,-500.0,0.00021668,2]
[346164787,1734762653745,-500.0,0.00021668,2]
[346164788,1734762653754,-515.04,0.00021668,2]
[346164789,1734762653763,-606.99071662,0.00021668,2]
[346164790,1734762653774,-640.01,0.00021668,2]
[346164791,1734762653783,-500.0,0.00021668,2]
[346164792,1734762653792,-500.0,0.00021668,2]
[346164793,1734762653801,-500.0,0.00021668,2]
[346164794,1734762653811,-706.47,0.00021668,2]
[346164795,1734762653821,-500.0,0.00021668,2]
[346164796,1734762653830,-500.0,0.00021668,2]
[346164797,1734762653839,-500.0,0.00021668,2]
[346164798,1734762653848,-716.24,0.00021668,2]
[346164799,1734762653858,-500.0,0.00021668,2]
[346164800,1734762653868,-978.76,0.00021668,2]
[346164801,1734762653879,-249.83361497,0.00021668,2]
[346164802,1734762653892,-500.0,0.00021668,2]
[346164803,1734762653902,-500.0,0.00021668,2]
[346164804,1734762653912,-1126.57,0.00021668,2]
[346164805,1734762653922,-500.0,0.00021668,2]
[346164806,1734762653932,-500.0,0.00021668,2]
[346164807,1734762653941,-658.57,0.00021668,2]
[346164808,1734762653950,-513.89,0.00021668,2]
[346164809,1734762653960,-806.59,0.00021668,2]
[346164810,1734762653969,-500.0,0.00021668,2]
[346164811,1734762653978,-500.0,0.00021668,2]
[346164812,1734762653987,-270.99678199,0.00021668,2]
[346164813,1734762653996,-500.0,0.00021668,2]
[346164814,1734762654006,-949.92,0.00021668,2]
[346164815,1734762654015,-862.92,0.00021668,2]
[346164816,1734762654026,-500.0,0.00021668,2]
[346164817,1734762654035,-1094.54,0.00021668,2]
[346164818,1734762654044,-312.70605031,0.00021668,2]
[346164819,1734762654055,-500.0,0.00021668,2]
[346164820,1734762654065,-500.0,0.00021668,2]
[346164821,1734762654074,-500.0,0.00021668,2]
[346164822,1734762654083,-500.0,0.00021668,2]
[346164823,1734762654092,-500.0,0.00021668,2]
[346164824,1734762654102,-500.0,0.00021668,2]
[346164825,1734762654112,-500.0,0.00021668,2]
[346164826,1734762654121,-609.66,0.00021668,2]
[346164827,1734762654130,-578.0,0.00021668,2]
[346164828,1734762654139,-500.0,0.00021668,2]
[346164829,1734762654148,-888.96,0.00021668,2]
[346164830,1734762654157,-500.0,0.00021668,2]
[346164831,1734762654166,-500.0,0.00021668,2]
[346164832,1734762654175,-500.0,0.00021668,2]
[346164833,1734762654184,-500.0,0.00021668,2]
[346164834,1734762654194,-500.0,0.00021668,2]
[346164835,1734762654202,-500.0,0.00021668,2]
[346164836,1734762654212,-500.0,0.00021668,2]
[346164837,1734762654221,-500.0,0.00021668,2]
[346164838,1734762654230,-500.0,0.00021668,2]
[346164839,1734762654239,-500.0,0.00021668,2]
[346164840,1734762654248,-812.35,0.00021668,2]
[346164841,1734762654257,-500.0,0.00021668,2]
[346164842,1734762654267,-500.0,0.00021668,2]
[346164843,1734762654277,-500.0,0.00021668,2]
[346164844,1734762654286,-500.0,0.00021668,2]
[346164845,1734762654295,-500.0,0.00021668,2]
[346164846,1734762654305,-607.33,0.00021668,2]
[346164847,1734762654314,-500.0,0.00021668,2]
[346164848,1734762654325,-500.0,0.00021668,2]
[346164849,1734762654334,-697.2,0.00021668,2]
[346164850,1734762654343,-500.0,0.00021668,2]
[346164851,1734762654352,-1126.91,0.00021668,2]
[346164852,1734762654362,-7280.05,0.00021668,2]
[346164853,1734762654371,-500.0,0.00021668,2]
[346164854,1734762654380,-500.0,0.00021668,2]
[346164855,1734762654390,-500.0,0.00021668,2]
[346164856,1734762654400,-455.73,0.00021668,2]
[346164857,1734762654409,-1605.56,0.00021668,2]
[346164858,1734762654418,-500.0,0.00021668,2]
[346164859,1734762654428,-500.0,0.00021668,2]
[346164860,1734762654437,-831.81,0.00021668,2]
[346164861,1734762654448,-500.0,0.00021668,2]
[346164862,1734762654457,-500.0,0.00021668,2]
[346164863,1734762654467,-500.0,0.00021668,2]
[346164864,1734762654476,-481.25980462,0.00021668,2]
[346164865,1734762654485,-1088.39,0.00021668,2]
[346164866,1734762654494,-500.0,0.00021668,2]
[346164867,1734762654503,-1414.7,0.00021668,2]
[346164868,1734762654513,-2004.44,0.00021668,2]
[346164869,1734762654525,-500.0,0.00021668,2]
[346164870,1734762654534,-857.46,0.00021668,2]
[346164871,1734762654543,-500.0,0.00021668,2]
[346164872,1734762654551,-500.0,0.00021668,2]
[346164873,1734762654561,-3951.27,0.00021668,2]
[346164874,1734762654570,-500.0,0.00021668,2]
[346164875,1734762654579,-1756.77,0.00021668,2]
[346164876,1734762654590,-500.0,0.00021668,2]
[346164877,1734762654599,-500.0,0.00021668,2]
[346164878,1734762654608,-500.0,0.00021668,2]
[346164879,1734762654618,-500.0,0.00021668,2]
[346164880,1734762654629,-500.0,0.00021668,2]
[346164881,1734762654640,-3839.14,0.00021668,2]
[346164882,1734762654651,-500.0,0.00021668,2]
[346164883,1734762654661,-4550.25,0.00021668,2]
[346164884,1734762654669,-500.0,0.00021668,2]
[346164885,1734762654679,-500.0,0.00021668,2]
[346164886,1734762654688,-504.19224339,0.00021668,2]
[346164887,1734762654697,-500.0,0.00021668,2]
[346164888,1734762654706,-500.0,0.00021668,2]
[346164889,1734762654715,-500.0,0.00021668,2]
[346164890,1734762654724,-500.0,0.00021668,2]
[346164891,1734762654734,-500.0,0.00021668,2]
[346164892,1734762654743,-500.0,0.00021668,2]
[346164893,1734762654752,-500.0,0.00021668,2]
[346164894,1734762654761,-500.0,0.00021668,2]
[346164895,1734762654771,-607.24,0.00021668,2]
[346164896,1734762654780,-984.06,0.00021668,2]
[346164897,1734762654789,-500.0,0.00021668,2]
[346164898,1734762654798,-500.0,0.00021668,2]
[346164899,1734762654807,-1407.29,0.00021668,2]
[346164900,1734762654815,-500.0,0.00021668,2]
[346164901,1734762654825,-500.0,0.00021668,2]
[346164902,1734762654834,-500.0,0.00021668,2]
[346164903,1734762654843,-500.0,0.00021668,2]
[346164904,1734762654852,-500.0,0.00021668,2]
[346164905,1734762654861,-500.0,0.00021668,2]
[346164906,1734762654870,-2999.94,0.00021668,2]
[346164907,1734762654879,-3106.35,0.00021668,2]
[346164908,1734762654891,-500.0,0.00021668,2]
[346164909,1734762654900,-500.0,0.00021668,2]
[346164910,1734762654909,-502.50979442,0.00021668,2]
[346164911,1734762654918,-500.0,0.00021668,2]
[346164912,1734762654927,-500.0,0.00021668,2]
[346164913,1734762654937,-1036.05,0.00021668,2]
[346164914,1734762654947,-503.41674595,0.00021668,2]
[346164915,1734762654956,-500.0,0.00021668,2]
[346164916,1734762654967,-500.0,0.00021668,2]
[346164917,1734762654976,-798.83,0.00021668,2]
[346164918,1734762654986,-500.0,0.00021668,2]
[346164919,1734762654996,-500.0,0.00021668,2]
[346164920,1734762655006,-500.0,0.00021668,2]
[346164921,1734762655015,-516.64,0.00021668,2]
[346164922,1734762655026,-338.00958299,0.00021668,2]
[346164923,1734762655035,-3735.43,0.00021668,2]
[346164924,1734762655044,-500.0,0.00021668,2]
[346164925,1734762655053,-723.58,0.00021668,2]
[346164926,1734762655062,-728.98,0.00021668,2]
[346164927,1734762655071,-500.0,0.00021668,2]
[346164928,1734762655080,-503.04381615,0.00021668,2]
[346164929,1734762655090,-1019.24,0.00021668,2]
[346164930,1734762655101,-500.0,0.00021668,2]
[346164931,1734762655110,-1102.65,0.00021668,2]
[346164932,1734762655119,-794.04,0.00021668,2]
[346164933,1734762655130,-1138.9,0.00021668,2]
[346164934,1734762655139,-377.74797044,0.00021668,2]
[346164935,1734762655148,-1430.94,0.00021668,2]
[346164936,1734762655158,-500.0,0.00021668,2]
[346164937,1734762655167,-500.0,0.00021668,2]
[346164938,1734762655176,-964.36,0.00021668,2]
[346164939,1734762655185,-500.0,0.00021668,2]
[346164940,1734762655194,-1552.92,0.00021668,2]
[346164941,1734762655202,-500.0,0.00021668,2]
[346164942,1734762655211,-500.0,0.00021668,2]
[346164943,1734762655220,-500.0,0.00021668,2]
[346164944,1734762655229,-927.04,0.00021668,2]
[346164945,1734762655238,-500.0,0.00021668,2]
[346164946,1734762655247,-500.0,0.00021668,2]
[346164947,1734762655255,-500.0,0.00021668,2]
[346164948,1734762655264,-500.0,0.00021668,2]
[346164949,1734762655274,-1121.11,0.00021668,2]
[346164950,1734762655283,-500.0,0.00021668,2]
[346164951,1734762655291,-500.0,0.00021668,2]
[346164952,1734762655300,-500.0,0.00021668,2]
[346164953,1734762655309,-500.0,0.00021668,2]